bitfinex-derivatives/quotes_SOLF0:USTF0_20241212
["timestamp","ask_amount","ask_price","bid_price","bid_amount"]
[1733973040333,7.73467306,228.95,228.89,2.1828]
[1733973040834,4.2363,228.96,228.89,2.1828]
[1733973041034,7.73467306,228.94,228.89,2.1828]
[1733973042636,9.91697306,228.94,228.88,2.1829]
[1733973042832,7.73467306,228.92,228.86,2.62]
[1733973043731,4.2363,228.96,228.86,10.35467306]
[1733973043931,7.73467306,228.94,228.86,10.35467306]
[1733973044631,7.73467306,228.94,228.89,2.1828]
[1733973045641,2.1822,228.95,228.89,2.1828]
[1733973045841,7.73467306,228.93,228.89,2.1828]
[1733973047541,7.73467306,228.91,228.82,2.1834]
[1733973047736,7.73467306,228.91,228.83,10.39467306]
[1733973048036,2.1822,228.96,228.9,2.1826]
[1733973048242,7.73467306,228.92,228.85,7.73467306]
[1733973048640,7.73467306,228.92,228.83,10.39467306]
[1733973048937,9.91717306,228.92,228.83,10.39467306]
[1733973049436,9.91717306,228.92,228.87,2.1829]
[1733973050538,4.1088,229.0,228.83,10.39467306]
[1733973050744,7.73467306,228.91,228.88,2.1828]
[1733973053338,7.73467306,228.91,228.83,10.39467306]
[1733973053544,4.1088,229.0,228.83,2.66]
[1733973053545,7.73467306,228.89,228.83,2.66]
[1733973054643,7.73467306,228.89,228.86,2.183]
[1733973055543,7.73467306,228.89,228.83,2.66]
[1733973055742,7.73467306,228.87,228.79,65.77253174]
[1733973055941,7.73467306,228.85,228.81,2.66]
[1733973056339,7.73467306,228.85,228.79,65.77253174]
[1733973056539,7.73467306,228.85,228.79,2.66]
[1733973056743,7.73467306,228.85,228.83,2.1833]
[1733973057138,2.1828,228.89,228.84,2.1832]
[1733973057339,7.73467306,228.87,228.8,7.73467306]
[1733973057540,2.1828,228.89,228.8,7.73467306]
[1733973057838,2.1828,228.89,228.79,2.66]
[1733973057839,5.14045546,228.91,228.82,7.73467306]
[1733973058043,7.73467306,228.9,228.84,7.73467306]
[1733973059548,7.73467306,228.9,228.87,2.1829]
[1733973059848,5.14045546,228.91,228.86,7.73467306]
[1733973060344,12.87512852,228.91,228.86,7.73467306]
[1733973060842,12.87512852,228.91,228.88,2.1829]
[1733973062143,6.7688,229.0,228.86,7.73467306]
[1733973062343,7.73467306,228.94,228.88,7.73467306]
[1733973062646,7.73467306,228.96,228.88,7.73467306]
[1733973062843,7.73467306,228.96,228.93,2.1824]
[1733973063043,7.73467306,228.96,228.88,7.73467306]
[1733973063238,12.9801791,228.98,228.92,7.73467306]
[1733973063439,7.73467306,228.99,228.92,7.73467306]
[1733973063846,7.73467306,228.99,228.94,2.1823]
[1733973064044,7.73467306,228.99,228.92,7.73467306]
[1733973064841,7.73467306,228.99,228.97,2.182]
[1733973065051,7.91151306,229.01,228.94,7.73467306]
[1733973066150,7.91151306,229.01,228.98,2.1819]
[1733973066346,0.17684,229.01,228.98,2.1819]
[1733973066548,7.91151306,229.01,228.98,2.1819]
[1733973067650,7.91151306,229.01,228.97,2.182]
[1733973068042,7.73467306,228.99,228.93,2.1823]
[1733973068245,7.73467306,228.99,228.91,10.39467306]
[1733973068645,7.73467306,228.99,228.93,7.73467306]
[1733973068842,7.91151306,229.01,228.93,7.73467306]
[1733973069444,7.91151306,229.01,228.98,2.1819]
[1733973069652,181.30921369,229.2,228.99,7.73467306]
[1733973069844,181.30921369,229.2,228.92,1.3924]
[1733973069845,7.73467306,229.15,229.1,2.1807]
[1733973070053,1.3382,229.18,229.11,2.66]
[1733973070349,7.73467306,229.16,229.11,2.66]
[1733973070949,5.26358253,229.17,229.11,2.66]
[1733973071148,7.73467306,229.16,229.11,2.66]
[1733973071753,7.73467306,229.16,229.11,4.8407]
[1733973071956,7.73467306,229.16,229.11,2.66]
[1733973074047,7.73467306,229.14,229.11,2.66]
[1733973074851,7.73467306,229.14,229.08,2.181]
[1733973075049,7.73467306,229.14,229.09,2.54]
[1733973075450,7.73467306,229.14,229.06,7.73467306]
[1733973075749,7.73467306,229.14,228.81,47.61032148]
[1733973075750,7.73467306,229.08,228.87,13.1]
[1733973075961,7.73467306,229.08,229.02,2.54]
[1733973077154,5.26358253,229.17,229.02,2.54]
[1733973077155,12.06950531,229.16,229.02,2.54]
[1733973077353,12.06950531,229.16,229.04,12.06950531]
[1733973078455,12.06950531,229.16,229.02,2.54]
[1733973079358,12.06950531,229.16,229.07,2.181]
[1733973080656,2.1805,229.13,229.07,2.181]
[1733973081864,12.06950531,229.16,229.07,2.181]
[1733973082055,2.1806,229.12,229.07,2.181]
[1733973082856,5.26358253,229.17,229.01,13.46190531]
[1733973082857,12.06950531,229.13,229.08,2.54]
[1733973083055,12.06950531,229.13,229.07,2.54]
[1733973083451,2.1809,229.09,229.07,2.54]
[1733973083759,12.06950531,229.13,229.07,2.54]
[1733973084462,2.1809,229.09,229.07,2.54]
[1733973085060,2.1809,229.09,229.06,2.54]
[1733973085259,2.181,229.08,229.06,2.54]
[1733973085461,5.26358253,229.17,229.05,2.54]
[1733973085462,12.06950531,229.1,229.05,2.54]
[1733973085660,2.1814,229.04,228.97,2.1819]
[1733973085862,12.06950531,229.07,228.98,2.54]
[1733973086459,2.1814,229.03,228.99,2.54]
[1733973087354,2.1814,229.03,228.94,1.4702]
[1733973087555,2.1814,229.03,228.96,2.1821]
[1733973088057,2.1816,229.01,228.94,1.4702]
[1733973088365,12.06950531,229.01,228.95,2.54]
[1733973089158,12.06950531,229.01,228.82,45.38]
[1733973089159,12.06950531,228.98,228.84,12.06950531]
[1733973089363,2.1823,228.95,228.85,7.8607323]
[1733973089554,12.06950531,228.98,228.86,5.3207323]
[1733973089757,12.06950531,228.98,228.87,5.3207323]
[1733973089953,12.06950531,228.98,228.85,2.54]
[1733973090154,12.06950531,228.98,228.86,5.32168574]
[1733973090364,12.06950531,228.98,228.87,5.32168574]
[1733973090561,12.06950531,228.98,228.88,5.32192054]
[1733973090864,12.06950531,228.98,228.85,2.54]
[1733973091068,12.06950531,228.98,228.86,5.32205206]
[1733973091362,12.06950531,228.98,228.87,5.32205206]
[1733973091563,1.3611,228.99,228.88,5.32205206]
[1733973091764,1.3611,228.99,228.89,5.32205206]
[1733973091964,1.3611,228.99,228.87,12.06950531]
[1733973092157,1.3611,228.99,228.88,5.32183551]
[1733973092364,1.3611,228.99,228.87,12.06950531]
[1733973092566,1.3611,228.99,228.88,5.32235083]
[1733973092761,1.3611,228.99,228.87,12.06950531]
[1733973092955,1.3611,228.99,228.88,5.32244597]
[1733973093156,1.3611,228.99,228.87,12.06950531]
[1733973093459,1.3611,228.99,228.88,5.32235743]
[1733973093660,1.3611,228.99,228.87,12.06950531]
[1733973093965,1.3611,228.99,228.88,5.32294275]
[1733973094166,12.06950531,229.01,228.87,12.06950531]
[1733973094466,12.06950531,229.01,228.88,5.32301366]
[1733973094964,12.06950531,229.01,228.89,5.32301366]
[1733973095154,12.06950531,229.01,228.87,12.06950531]
[1733973095355,12.06950531,229.01,228.88,5.32367952]
[1733973095559,12.06950531,229.01,228.89,5.32367952]
[1733973095760,4.3061,229.04,228.93,12.06950531]
[1733973095963,12.06950531,229.07,228.94,7.86202135]
[1733973096160,12.06950531,229.07,228.94,2.54]
[1733973096359,12.06950531,229.07,228.95,5.32204052]
[1733973096559,12.06950531,229.07,228.94,4.0032]
[1733973096768,12.06950531,229.04,228.94,1.4632]
[1733973096959,12.06950531,229.04,228.95,2.54]
[1733973097265,12.06950531,229.04,228.96,2.54]
[1733973098065,12.06950531,229.07,228.96,2.54]
[1733973100266,12.06950531,229.1,228.96,2.54]
[1733973100468,12.06950531,229.1,228.96,14.60950531]
[1733973100865,12.06950531,229.1,228.97,5.32738486]
[1733973101163,12.06950531,229.1,228.98,5.32738486]
[1733973101364,12.06950531,229.1,228.99,5.32738486]
[1733973101569,4.1923,229.12,229.0,17.39689017]
[1733973101766,12.06950531,229.16,229.01,5.32738486]
[1733973101973,12.06950531,229.16,229.02,7.86738486]
[1733973102268,12.06950531,229.16,229.03,5.32738486]
[1733973102469,12.06950531,229.16,229.04,7.86738486]
[1733973102770,12.06950531,229.16,229.05,5.32705578]
[1733973102965,12.06950531,229.16,229.04,2.54]
[1733973103268,12.06950531,229.16,229.05,5.32693682]
[1733973103467,12.06950531,229.16,229.04,2.54]
[1733973103668,12.06950531,229.16,229.05,5.32841835]
[1733973103874,12.06950531,229.16,229.06,5.32841835]
[1733973104067,12.06950531,229.16,229.04,2.54]
[1733973104567,12.06950531,229.16,229.05,5.32797126]
[1733973104760,12.06950531,229.16,229.06,5.32797126]
[1733973104965,12.06950531,229.16,229.07,5.32797126]
[1733973105166,12.06950531,229.16,229.04,2.54]
[1733973105364,5.26358253,229.17,229.05,5.32898817]
[1733973105568,5.26358253,229.17,229.04,2.54]
[1733973105769,12.06950531,229.19,229.05,5.32836951]
[1733973105968,12.06950531,229.19,229.06,5.32836951]
[1733973106169,12.06950531,229.19,229.07,5.32836951]
[1733973106371,4.0815,229.2,229.08,5.32836951]
[1733973106673,4.0815,229.2,229.09,5.32836951]
[1733973106872,4.0815,229.2,229.1,19.93787482]
[1733973107073,1.4109,229.2,229.11,5.32642812]
[1733973107273,1.4109,229.2,229.12,5.32642812]
[1733973107469,12.06950531,229.25,229.13,5.32642812]
[1733973107675,5.32366502,229.24,229.14,5.32642812]
[1733973107873,5.32366502,229.24,229.15,5.32642812]
[1733973108078,12.06950531,229.25,229.16,7.86642812]
[1733973108281,12.06950531,229.25,229.16,2.54]
[1733973109073,2.8265,229.26,229.16,2.54]
[1733973109271,2.8265,229.26,229.17,5.3184376]
[1733973109570,2.8265,229.26,229.18,5.3184376]
[1733973109773,2.8265,229.26,229.16,2.54]
[1733973109970,2.8265,229.26,229.17,5.31584711]
[1733973110276,2.8265,229.26,229.16,2.54]
[1733973110472,2.8265,229.26,229.17,5.3138786]
[1733973110679,2.8265,229.26,229.16,2.54]
[1733973110878,2.8265,229.26,229.17,5.31387859]
[1733973111080,2.8265,229.26,229.16,2.54]
[1733973111280,12.06950531,229.31,229.17,5.31387525]
[1733973111477,12.06950531,229.31,229.18,5.31387525]
[1733973111679,12.06950531,229.31,229.19,12.06950531]
[1733973111877,12.06950531,229.31,229.2,5.30974199]
[1733973112077,2.7633,229.33,229.21,5.30974199]
[1733973112381,2.7633,229.33,229.22,2.54]
[1733973112579,1.3462,229.33,229.22,14.60950531]
[1733973112981,1.3462,229.33,229.23,5.3053354]
[1733973113173,1.3462,229.33,229.22,14.60950531]
[1733973113376,1.3462,229.33,229.22,12.06950531]
[1733973113576,1.3462,229.33,229.23,2.54]
[1733973113785,1.3462,229.33,229.25,2.1793]
[1733973114372,1.3462,229.33,229.26,2.54]
[1733973114373,2.1788,229.31,229.26,2.54]
[1733973115680,1.3462,229.33,229.24,2.54]
[1733973116579,2.179,229.3,229.24,2.54]
[1733973116779,1.3462,229.33,229.24,2.54]
[1733973116983,1.3462,229.33,229.25,2.54]
[1733973116984,12.06950531,229.31,229.25,2.54]
[1733973118687,2.179,229.29,229.25,2.54]
[1733973119187,12.06950531,229.31,229.17,1.329]
[1733973119379,12.06950531,229.31,229.18,2.54]
[1733973119887,2.1793,229.25,229.19,2.1798]
[1733973121485,2.1793,229.25,229.2,4.7198]
[1733973122784,1.3462,229.33,229.2,2.54]
[1733973123082,1.3462,229.33,229.22,12.06950531]
[1733973123282,5.36186783,229.36,229.22,12.06950531]
[1733973123487,1.4571,229.39,229.28,12.06950531]
[1733973123678,1.4571,229.39,229.29,2.54]
[1733973123883,6.72373411,229.39,229.29,2.54]
[1733973124586,6.72373411,229.39,229.29,4.7189]
[1733973124587,2.1783,229.36,229.29,4.7189]
[1733973124782,6.72373411,229.39,229.29,4.7189]
[1733973125185,2.1783,229.36,229.29,4.7189]
[1733973125685,18.79323942,229.39,229.27,2.1791]
[1733973125881,18.79323942,229.39,229.28,2.54]
[1733973126785,18.79323942,229.39,229.25,12.06950531]
[1733973127086,18.79323942,229.39,229.26,2.54]
[1733973128193,18.79323942,229.39,229.28,2.1791]
[1733973129587,2.1785,229.34,229.28,2.1791]
[1733973130385,2.1785,229.34,229.29,2.54]
[1733973130889,18.79323942,229.39,229.29,2.54]
[1733973131283,18.79323942,229.39,229.3,2.54]
[1733973132182,2.1786,229.33,229.3,2.54]
[1733973132383,18.79323942,229.39,229.3,2.54]
[1733973133384,2.1786,229.33,229.3,2.54]
[1733973134390,2.1785,229.35,229.3,2.54]
[1733973134687,18.79323942,229.39,229.3,2.54]
[1733973135588,2.1785,229.34,229.3,2.54]
[1733973135794,12.06950531,229.35,229.27,2.5]
[1733973135985,12.06950531,229.35,229.26,2.5]
[1733973137088,181.30921369,229.45,229.3,12.06950531]
[1733973137390,17.31229813,229.45,229.3,12.06950531]
[1733973137892,2.1777,229.42,229.35,2.1783]
[1733973138094,17.31229813,229.45,229.36,2.5]
[1733973138294,2.1778,229.41,229.36,2.5]
[1733973138795,17.31229813,229.45,229.36,2.5]
[1733973138990,2.178,229.39,229.36,2.5]
[1733973140495,17.31229813,229.45,229.36,2.5]
[1733973141091,2.178,229.39,229.36,2.5]
[1733973141292,17.31229813,229.45,229.36,2.5]
[1733973141796,2.1779,229.4,229.36,2.5]
[1733973142388,4.378,229.48,229.36,2.5]
[1733973142592,5.23520906,229.46,229.36,2.5]
[1733973143091,16.44750531,229.48,229.37,2.1782]
[1733973144098,2.1777,229.43,229.37,2.1782]
[1733973145200,2.1776,229.44,229.38,2.1781]
[1733973145899,2.1776,229.43,229.36,4.6782]
[1733973147397,2.1777,229.42,229.36,2.5]
[1733973147605,5.11348016,229.47,229.36,2.5]
[1733973147801,5.11348016,229.47,229.37,2.5]
[1733973148001,2.1778,229.42,229.37,2.5]
[1733973148406,5.11348016,229.47,229.37,2.5]
[1733973148700,2.1778,229.41,229.37,2.5]
[1733973149203,7.7042317,229.43,229.37,2.5]
[1733973149403,2.1779,229.4,229.37,2.5]
[1733973149599,7.7042317,229.41,229.37,2.5]
[1733973150195,7.7042317,229.41,229.34,7.7042317]
[1733973150196,2.1781,229.38,229.35,2.5]
[1733973150400,7.7042317,229.41,229.36,5.3157005]
[1733973150601,2.1783,229.36,229.33,2.5]
[1733973150807,2.1783,229.36,229.34,5.32032168]
[1733973151002,2.1783,229.36,229.35,5.32032168]
[1733973151507,2.1783,229.36,229.33,2.5]
[1733973151707,2.1783,229.36,229.35,5.32504847]
[1733973152005,7.7042317,229.39,229.35,5.32503837]
[1733973152204,2.1782,229.38,229.33,2.5]
[1733973152404,2.1782,229.38,229.34,5.32520926]
[1733973152604,2.1782,229.37,229.35,5.32520926]
[1733973152805,2.1782,229.37,229.33,2.5]
[1733973153005,2.1782,229.37,229.34,5.32692879]
[1733973153206,2.1782,229.37,229.35,5.32692879]
[1733973153396,2.1782,229.37,229.33,2.5]
[1733973153596,2.1782,229.37,229.34,5.32827542]
[1733973153809,7.7042317,229.39,229.35,5.32827542]
[1733973154103,7.7042317,229.39,229.32,10.2042317]
[1733973154298,7.7042317,229.39,229.33,5.32898408]
[1733973154608,7.7042317,229.39,229.34,5.32898408]
[1733973154806,7.7042317,229.39,229.32,10.2042317]
[1733973155003,7.7042317,229.39,229.33,5.32995354]
[1733973155306,2.1784,229.35,229.32,2.5]
[1733973155506,2.1784,229.35,229.33,5.33214658]
[1733973155699,2.1784,229.35,229.32,2.5]
[1733973155904,2.1784,229.35,229.33,5.33237161]
[1733973156104,2.1784,229.35,229.34,5.33237161]
[1733973157503,5.11348016,229.47,229.34,5.33237161]
[1733973157706,7.7042317,229.4,229.35,5.33338554]
[1733973157912,7.7042317,229.4,229.32,10.2042317]
[1733973158212,2.1782,229.37,229.33,5.33315847]
[1733973158408,2.1782,229.37,229.34,5.33315847]
[1733973158608,2.1782,229.37,229.35,5.33315847]
[1733973158807,2.1782,229.37,229.32,10.2042317]
[1733973159108,2.1782,229.37,229.33,5.33314596]
[1733973159412,2.1782,229.37,229.34,5.33314596]
[1733973159613,2.1783,229.36,229.35,5.33314596]
[1733973159803,7.7042317,229.38,229.32,2.5]
[1733973160110,7.7042317,229.38,229.33,5.33421888]
[1733973160407,7.7042317,229.38,229.32,2.5]
[1733973161705,7.7042317,229.36,229.31,2.5]
[1733973161910,7.7042317,229.36,229.3,2.5]
[1733973162312,2.1786,229.34,229.3,2.5]
[1733973162715,7.7042317,229.36,229.3,2.5]
[1733973163616,2.1786,229.33,229.3,2.5]
[1733973164015,7.7042317,229.34,229.28,2.48]
[1733973164713,7.7042317,229.32,229.28,2.48]
[1733973165515,2.7834,229.39,229.28,2.48]
[1733973165713,7.7042317,229.33,229.28,2.48]
[1733973166117,2.1787,229.32,229.29,5.34512878]
[1733973166417,7.7042317,229.31,229.24,7.7042317]
[1733973166616,7.7042317,229.31,229.25,7.82789126]
[1733973166818,7.7042317,229.31,229.26,5.34789126]
[1733973167023,2.1789,229.3,229.27,5.34789126]
[1733973167222,7.7042317,229.35,229.28,13.05360676]
[1733973167419,7.7042317,229.35,229.29,5.34937506]
[1733973167618,2.1787,229.32,229.3,5.34937506]
[1733973167820,2.1787,229.32,229.28,7.7042317]
[1733973168016,2.1787,229.32,229.29,5.34858786]
[1733973168221,2.1788,229.31,229.3,5.35000718]
[1733973168417,2.1788,229.31,229.28,7.7042317]
[1733973168625,2.1788,229.31,229.29,5.35038156]
[1733973168824,2.1788,229.31,229.28,7.7042317]
[1733973169126,2.1788,229.31,229.29,5.35054772]
[1733973169325,7.7042317,229.33,229.27,7.7042317]
[1733973169526,7.7042317,229.33,229.28,5.3499483]
[1733973169527,2.1787,229.33,229.28,5.3499483]
[1733973169826,2.1787,229.33,229.29,5.3499483]
[1733973170027,2.1787,229.33,229.3,5.3499483]
[1733973170224,2.1787,229.33,229.27,7.7042317]
[1733973170427,2.1787,229.33,229.28,5.34948866]
[1733973170625,2.1787,229.33,229.25,2.48]
[1733973170626,2.7834,229.39,229.29,5.34948866]
[1733973170823,2.1783,229.37,229.32,7.7042317]
[1733973171018,2.1783,229.37,229.33,7.82948866]
[1733973171219,2.1781,229.39,229.34,7.7042317]
[1733973171523,7.7042317,229.42,229.34,7.7042317]
[1733973171726,7.7042317,229.42,229.35,5.34555277]
[1733973172027,7.7042317,229.42,229.34,7.7042317]
[1733973172028,7.7042317,229.4,229.36,5.34555277]
[1733973172227,7.7042317,229.4,229.37,5.34555277]
[1733973172421,7.7042317,229.4,229.33,2.48]
[1733973172626,9.8821317,229.4,229.34,7.52324325]
[1733973172927,7.7042317,229.38,229.35,5.34474325]
[1733973173127,7.7042317,229.38,229.36,5.34474325]
[1733973173323,9.8823317,229.38,229.33,2.48]
[1733973173528,7.7042317,229.4,229.34,5.34568893]
[1733973173727,7.7042317,229.4,229.33,2.48]
[1733973173728,7.7042317,229.4,229.35,5.34568893]
[1733973173923,7.7042317,229.4,229.36,5.34568893]
[1733973174230,7.7042317,229.4,229.37,5.34497313]
[1733973174533,7.7042317,229.4,229.38,5.34497313]
[1733973174723,9.8821317,229.4,229.34,2.1785]
[1733973174928,9.8821317,229.4,229.35,5.34578553]
[1733973175128,7.7042317,229.46,229.39,2.1779]
[1733973175325,7.7042317,229.46,229.4,7.82578553]
[1733973175529,7.7042317,229.46,229.41,5.34578553]
[1733973175832,7.7042317,229.46,229.42,5.34578553]
[1733973176029,7.7042317,229.46,229.4,2.48]
[1733973176326,2.8165,229.53,229.41,5.34042288]
[1733973176531,7.7042317,229.45,229.42,5.34042288]
[1733973176727,7.7042317,229.45,229.4,2.48]
[1733973176930,7.7042317,229.45,229.41,5.33904809]
[1733973177231,7.7042317,229.45,229.4,2.48]
[1733973177427,7.7042317,229.45,229.41,5.33769632]
[1733973177628,7.7042317,229.45,229.4,2.48]
[1733973177930,7.7042317,229.43,229.41,5.33764753]
[1733973178132,7.7042317,229.43,229.4,2.48]
[1733973178525,2.1777,229.42,229.4,2.48]
[1733973179435,7.7042317,229.41,229.4,2.48]
[1733973179636,7.7042317,229.43,229.4,2.48]
[1733973180735,2.8165,229.53,229.41,7.7042317]
[1733973180935,7.7042317,229.49,229.42,5.33640758]
[1733973181132,7.7042317,229.49,229.41,7.7042317]
[1733973181331,7.7042317,229.49,229.43,5.33692856]
[1733973181532,7.7042317,229.49,229.41,7.7042317]
[1733973181728,7.7042317,229.49,229.42,5.33687246]
[1733973181931,7.7042317,229.5,229.43,15.21870416]
[1733973182131,7.7042317,229.5,229.44,5.33687246]
[1733973182437,7.7042317,229.5,229.45,2.48]
[1733973183236,5.35277309,229.54,229.45,2.48]
[1733973183436,7.7042317,229.51,229.45,10.1842317]
[1733973183631,7.7042317,229.53,229.46,5.32877446]
[1733973183935,7.7042317,229.53,229.45,10.1842317]
[1733973184132,7.7042317,229.53,229.46,5.32878495]
[1733973184332,7.7042317,229.53,229.45,10.1842317]
[1733973184529,2.1768,229.52,229.45,10.1842317]
[1733973184735,7.7042317,229.51,229.45,2.48]
[1733973185233,7.7042317,229.49,229.45,2.48]
[1733973185433,9.8813317,229.49,229.45,2.48]
[1733973186532,9.8813317,229.49,229.35,4.1094]
[1733973186533,2.1773,229.47,229.41,7.7042317]
[1733973186734,2.1773,229.47,229.42,7.80397461]
[1733973186933,2.1773,229.47,229.43,5.32397461]
[1733973187136,2.1773,229.47,229.42,2.48]
[1733973187432,9.8813317,229.49,229.43,15.50610277]
[1733973187735,9.8813317,229.49,229.43,10.1842317]
[1733973187937,9.8813317,229.49,229.44,5.32151439]
[1733973188138,9.8813317,229.49,229.43,10.1842317]
[1733973188738,9.8813317,229.49,229.43,12.3618317]
[1733973190635,9.8813317,229.49,229.35,4.1094]
[1733973190636,7.7042317,229.47,229.35,4.1094]
[1733973190841,7.7042317,229.45,229.36,13.02285199]
[1733973191039,7.7042317,229.45,229.37,7.79862029]
[1733973191339,2.48,229.51,229.38,5.31862029]
[1733973191538,7.7042317,229.39,229.34,2.48]
[1733973191740,7.7042317,229.39,229.35,5.32133258]
[1733973192037,7.7042317,229.39,229.34,4.6585]
[1733973192237,7.7042317,229.39,229.35,5.3217944]
[1733973192438,9.8823317,229.39,229.34,4.6585]
[1733973192638,9.8823317,229.39,229.35,5.32196802]
[1733973192839,9.8823317,229.39,229.34,4.6585]
[1733973193338,9.8823317,229.39,229.35,5.32178437]
[1733973193535,9.8823317,229.39,229.34,2.48]
[1733973194542,2.1782,229.37,229.34,2.48]
[1733973194732,2.1782,229.37,229.32,2.1787]
[1733973194937,2.1782,229.37,229.3,7.7042317]
[1733973194938,2.1782,229.37,229.33,2.48]
[1733973195138,2.1781,229.38,229.33,4.6586]
[1733973195442,2.1781,229.38,229.33,2.1786]
[1733973195746,2.1781,229.38,229.33,4.6586]
[1733973196640,2.1782,229.37,229.33,4.6586]
[1733973196837,2.1782,229.37,229.33,2.48]
[1733973197237,2.1782,229.37,229.3,7.7042317]
[1733973197442,9.8824317,229.37,229.31,7.80210604]
[1733973197641,9.8824317,229.37,229.32,5.32210604]
[1733973197844,9.8824317,229.37,229.32,2.1787]
[1733973198044,2.1785,229.34,229.27,1.455]
[1733973198249,2.1785,229.34,229.28,17.68739606]
[1733973198544,7.7042317,229.35,229.29,5.32242466]
[1733973198740,7.7042317,229.35,229.3,5.32242466]
[1733973198946,9.8829317,229.33,229.29,2.48]
[1733973199338,9.8829317,229.33,229.28,4.3598397]
[1733973199543,7.7042317,229.33,229.28,4.6607397]
[1733973199843,2.1787,229.32,229.28,4.6607397]
[1733973201944,2.1787,229.32,229.28,14.5439714]
[1733973202144,2.1786,229.33,229.28,14.5439714]
[1733973202345,2.48,229.41,229.28,12.3649714]
[1733973202649,7.7042317,229.36,229.28,12.3649714]
[1733973202952,7.7042317,229.36,229.29,5.32266336]
[1733973203149,7.7042317,229.36,229.28,10.1842317]
[1733973203445,7.7042317,229.36,229.29,5.32213838]
[1733973203646,2.1784,229.35,229.3,7.50103838]
[1733973203848,2.1784,229.35,229.3,2.1789]
[1733973204143,4.2326,229.45,229.32,2.1787]
[1733973204144,7.7042317,229.37,229.32,2.1787]
[1733973204551,7.7042317,229.37,229.3,7.7042317]
[1733973205150,7.7042317,229.39,229.34,2.1785]
[1733973206053,9.8822317,229.39,229.34,2.1785]
[1733973206250,7.7042317,229.37,229.33,2.48]
[1733973210455,7.7042317,229.35,229.33,2.48]
[1733973210657,7.7042317,229.35,229.29,2.48]
[1733973210846,7.7042317,229.33,229.27,11.3383317]
[1733973211149,7.7042317,229.33,229.28,5.32540849]
[1733973211354,7.7042317,229.31,229.23,1.3511]
[1733973211552,2.1789,229.3,229.24,9.98577727]
[1733973211751,7.7042317,229.31,229.24,7.80647727]
[1733973211952,7.7042317,229.31,229.23,7.7042317]
[1733973211953,7.7042317,229.29,229.25,5.32647727]
[1733973212249,7.7042317,229.29,229.23,10.1842317]
[1733973212450,7.7042317,229.29,229.23,7.7042317]
[1733973212758,9.8832317,229.29,229.24,5.32734842]
[1733973212953,9.8832317,229.29,229.23,12.3637317]
[1733973213649,9.8830317,229.31,229.24,2.1794]
[1733973213855,7.7042317,229.31,229.23,10.1842317]
[1733973214659,7.7042317,229.29,229.23,12.3637317]
[1733973215347,7.7042317,229.25,229.2,1.4265]
[1733973215553,7.7042317,229.21,229.18,2.48]
[1733973215754,7.7042317,229.21,229.19,5.32730176]
[1733973215954,7.7042317,229.21,229.18,2.48]
[1733973216459,4.1378,229.34,229.18,10.1842317]
[1733973216652,4.1378,229.34,229.22,7.7042317]
[1733973216851,4.1378,229.34,229.23,2.48]
[1733973217159,7.7042317,229.29,229.23,2.48]
[1733973218359,7.7042317,229.29,229.23,4.6594]
[1733973218761,7.7042317,229.27,229.23,4.6594]
[1733973219855,7.7042317,229.27,229.2,7.7042317]
[1733973220055,4.1378,229.34,229.21,2.48]
[1733973220262,7.7042317,229.29,229.22,7.7042317]
[1733973220462,7.7042317,229.27,229.21,2.48]
[1733973220952,7.7042317,229.27,229.22,2.1796]
[1733973221455,9.8833317,229.28,229.21,2.48]
[1733973221662,7.7042317,229.26,229.21,4.6597]
[1733973222063,7.7042317,229.26,229.21,2.48]
[1733973223764,7.7042317,229.26,229.22,2.1796]
[1733973227064,9.8833317,229.28,229.23,2.1795]
[1733973228163,2.1792,229.27,229.23,2.1795]
[1733973228363,9.8834317,229.27,229.23,2.1795]
[1733973229065,4.1378,229.34,229.22,7.7042317]
[1733973229266,7.7042317,229.29,229.25,2.1793]
[1733973230265,7.7042317,229.27,229.23,2.1794]
[1733973230562,7.7042317,229.25,229.21,2.48]
[1733973230768,7.7042317,229.22,229.21,2.48]
[1733973231359,7.7042317,229.24,229.21,2.48]
[1733973232565,2.1793,229.26,229.21,2.48]
[1733973232870,7.7042317,229.24,229.21,2.48]
[1733973233870,7.7042317,229.24,229.2,2.1797]